{"text_format":"1","workbook":"xlsx","n_sheets":4,"sheets":["7(a) PPP Loan Estimator","SBA  PPP AdjustedSize Standards","Definitions","Expected Data Needed "],"not_rendered":{"charts":0,"images":2,"macros":1,"external_links":0,"defined_names":45,"comments":0,"pivot_tables":0},"unopened":[],"bounds":{"document_bytes":16777216,"sheet_cells":100000,"rows_first":2000,"rows_last":500,"rows_between":2000,"halvings":0,"cell_chars":16384,"cell_head_chars":4096},"cells_cut":0,"cells_raw":0,"read":"whole","date_system":"1900"}

{"sheet":"7(a) PPP Loan Estimator","index":0,"n_rows":57,"n_cols":17,"rows_kept":57,"cut":false,"hidden":false,"merged":[[56,2,56,6],[6,0,9,6],[19,3,19,5],[24,3,24,5],[22,3,22,5],[23,3,23,5],[17,3,17,5],[18,3,18,5],[54,1,54,3],[48,1,48,3],[49,1,49,3],[50,1,50,3],[51,1,51,3],[52,1,52,3],[53,1,53,3],[10,2,11,2],[12,2,12,3],[30,1,30,3],[31,4,31,6],[20,3,20,5],[27,1,27,3],[28,1,28,2],[25,3,25,5],[26,3,26,5]]}
[]
[]
[]
[]
[]
[]
["DISCLAIMER: This spreadsheet is an estimation tool based upon an interpretation as of 3/31/2020 of newly passed legislation and is merely a means to estimate how much a potential borrower may qualify for under the new SBA 7(a) provisions of the CARES ACT that passed on 3/27/2020. This in no way should be relied upon as the final amount that an authorized financial institution will approve once final interpertations and guidance on the new law are used to underwrite a borrowers loan request. User agrees to hold Harding, Shymanski & Company, P.S.C. harmless against claims related to the use of this tool."]
[]
[]
[]
[null,null,"Legend","User Entry Required"]
[null,null,null,"Formula - Do not alter"]
[null,"Company Name (If you have multiple companies complete this form for each one separately)","Enter Company Name"]
[]
[]
[]
[null,"Questions and Good Faith Certification","Select Yes or No"]
[null,"Are you an Eligible Recipient (see definitions tab) with employee size not greater than 500 employees*, (where employees include Full-time, Part-time or other basis)?",null,{"$f":"IF(C18=\"NO\",\"Qualification may be limited or denied\",\"\")","v":""}]
[null,"Was this eligible recipient in business on 2/15/2020?",null,""]
[null,"Enter the number of employees for this eligible recipient",null,{"$f":"IF(C20>500,\"Qualification may be limited or denied\",\"\")","v":""}]
[null,"This question is for independent contractors or sole proprietors only - If 0 (zero) employees, did the company have independent contractors as reported on a Form 1099-MISC? (enter N/A if there are employees)",null,{"$f":"IF(C21=\"NO\",\"Qualification may be limited or denied\",\"\")","v":""}]
[null,"Enter this eligible recipient's NAICS Code. Lookup NAICS Code here                                     "]
[null,"If over 500 employees do you meet the SBA NAICS size exceptions for your industry (see SBA PPP Adjusted Size Standards tab) or the NAICS Code 72 (Accommodation and Food Services) per location rule?  *",null,{"$f":"IF(C23=\"NO\",\"Qualification may be limited or denied\",\"\")","v":""}]
[null,"Does the uncertainty of current economic conditions make necessary the loan request to support the eligible recipient's ongoing operations?",null,{"$f":"IF(C24=\"NO\",\"Qualification may be limited or denied\",\"\")","v":""}]
[null,"Does the eligible recipient intend to use loan proceeds to retain workers and maintain payroll, and/or make mortgage payments, lease payments, and utility payments; (See Allowable use of Proceeds below) ",null,""]
[null,"Does this eligible recipient have an application pending for a loan with the SBA for the same purpose and duplicative of amounts under a covered loan?",null,{"$f":"IF(C26=\"YES\",\"Qualification may be limited or denied\",\"\")","v":""}]
[null,"For the period February 15, 2020 to December 31, 2020, has this eligible recipient has received amounts for the same purpose and duplicative of amounts applied for or received under a covered loan. ",null,{"$f":"IF(C27=\"YES\",\"Qualification may be limited or denied\",\"\")","v":""}]
[null,"*If your entity has over 500 employees, it may still be eligible under the size standards as defined by the SBA for the industry in which the business concern, non profit, veterans organization, or Tribal business concern operates (but in no case do these standards reduce the 500 employee limit.)"]
[null,"*For business concerns that are assigned a NAICS code beginning with digits 72 (Accommodation and Food Services) at the time of disbursal are allowed not more than 500 employees PER ANY PHYSICAL LOCATION of the business concern"]
[]
[null,"Calculation of Estimated Eligible Loan Amount",null,null,null,null,null,null,null,null,null,null,null,null,null,null," "]
[null,"For Eligible Entities that are Business Concerns, Non Profit under 501 c(3), Veteran's Organization or Tribal Business Concern enter Actual Historical \"Qualified Payroll Costs\" the sum of the following payments to an employee of compensation that is:","Total payroll costs for calendar year 2019 (per PPP instructions)***","Average to be used for Loan Amount","***For businesses not in business from the period 2/15/2019 to 6/30/19, payroll should be averaged for the period 1/1/2020 to 2/29/2020.                                                                                                                                                                                                                                                                         ***For seasonal businesses, borrower has the choice of the average payroll 12 weeks ended 2/15/19 or the average payroll from 3/1/19 to 6/30/19"]
[null,"Salaries, wages, commissions, or similar compensation (do not include payments to independent contractors or subcontractors)",null,{"$f":"C33/12","v":0},"  "]
[null,"plus Payment of cash tip or equivalent",null,{"$f":"C34/12","v":0}]
[null,"plus Payment for vacation, parental, family, medical, or sick leave",null,0]
[null,"plus Allowance for dismissal or separation",null,0]
[null,"plus Payment required for provisions of group health care benefits, Including insurance premiums",null,0]
[null,"plus Payment of any retirement benefit",null,0]
[null,"plus Payment of local or state tax assessed on the compensation of employees",null,0]
[null,"excluding (a) Compensation of any individual employee in excess of salary of $100,000 on an  ANNUALIZED basis for each employee (for example, an employee who worked for 6 months and made $80,000 should have an exclusion adjustment of $30,000)",null,0]
[null,"excluding (a) Any compensation of an individual whose principal residence is outside  the USA",null,0]
[null,"excluding (a) Sick leave wages and family leave wages credited under sec 7001 and 7003 of the Families First Coronavirus Response Act",null,0]
[null,"AND IF A SOLE PROPRIETOR OR INDEPENDENT CONTRACTOR (Caution, this should ONLY be completed by a sole proprietor or independent contrator, ie. a Schedule C taxpayer)","Total payroll costs for calendar year 2019 (per PPP instructions)***","Average to be used for Loan Amount"]
[null,"Include sum of payments of any compensation to or income of a sole proprietor or independent contractor that is a wage, commission, income, net earnings from self-employment that is not more than $100,000 in 1 year",null,{"$f":"C44/12","v":0}]
[null,"Total of Qualified Payroll Expenses",{"$f":"SUM(C33:C42)+C44","v":0},{"$f":"SUM(D33:D42)+D44","v":0}]
[null,null,"Projected Loan Amount (Lesser of 2.5x average monthly qualified payroll expenses or $10 million)",{"$f":"MIN(2.5*D45,10000000)","v":0}]
[null,"(a) IMPORTANT - Only enter the excluding line items as negative amounts if those amounts are already included in the positive numbers above"]
[]
[null,"Allowable & Potentially Forgiveable Uses of the Proceeds"]
[null,"All Qualified Payroll Expenses (from above)"]
[null,"Costs related to the continuation of group health care benefits during periods of sick, medical, or family leave and insurance premiums"]
[null,"Payments of interest on any mortgage obligation (excluding principal payments or prepayment of principal)"]
[null,"Rent (including rent under a lease agreement)"]
[null,"Utilities (such as gas, electric, water, phone and internet access)"]
[null,"All other Interest the Company has on debt obligations incurred prior to covered period (not forgiveable)"]
[]
[null,null,"©2020 Harding, Shymanski and Company, P.S.C. All rights reserved."]

{"sheet":"SBA  PPP AdjustedSize Standards","index":1,"n_rows":1150,"n_cols":4,"rows_kept":1150,"cut":false,"hidden":false,"merged":[]}
["NAICS Codes","NAICS Industry Description","Size standards in number of employees","Footnotes"]
[null,"Sector 11 – Agriculture, Forestry, Fishing and Hunting"]
["Subsector 111 – Crop Production"]
[111110,"Soybean Farming"]
[111120,"Oilseed (except Soybean) Farming"]
[111130,"Dry Pea and Bean Farming"]
[111140,"Wheat Farming"]
[111500,"Corn Farming"]
[111160,"Rice Farming"]
[111191,"Oilseed and Grain Combination Farming"]
[111199,"All Other Grain Farming"]
[111211,"Potato Farming"]
[111219,"Other Vegetable (except Potato) and Melon Farming  "]
[111310,"Orange Groves"]
[111320,"Citrus (except Orange) Groves"]
[111331,"Apple Orchards"]
[111332,"Grape Vineyards"]
[111333,"Strawberry Farming"]
[111334,"Berry (except Strawberry) Farming"]
[111335,"Tree Nut Farming"]
[111336,"Fruit and Tree Nut Combination Farming"]
[111339,"Other Noncitrus Fruit Farming"]
[111411,"Mushroom Production"]
[111419,"Other Food Crops Grown Under Cover"]
[111421,"Nursery and Tree Production"]
[111422,"Floriculture Production"]
[111910,"Tobacco Farming"]
[111920,"Cotton Farming"]
[111930,"Sugarcane Farming"]
[111940,"Hay Farming"]
[111991,"Sugar Beet Farming  "]
[111992,"Peanut Farming  "]
[111998,"All Other Miscellaneous Crop Farming"]
["Subsector 112 – Animal Production and Aquaculture"]
[112111,"Beef Cattle Ranching and Farming"]
[112112,"Cattle Feedlots"]
[112120,"Dairy Cattle and Milk Production"]
[112210,"Hog and Pig Farming"]
[112310,"Chicken Egg Production"]
[112320,"Broilers and Other Meat Type Chicken Production  "]
[112330,"Turkey Production"]
[112340,"Poultry Hatcheries"]
[112390,"Other Poultry Production"]
[112410,"Sheep Farming"]
[112420,"Goat Farming"]
[112511,"Finfish Farming and Fish Hatcheries"]
[112512,"Shellfish Farming"]
[112519,"Other  Aquaculture"]
[112910,"Apiculture"]
[112920,"Horses and Other Equine Production"]
[112930,"Fur‑Bearing Animal and Rabbit Production"]
[112990,"All Other Animal Production"]
["Subsector 113 – Forestry and Logging"]
[113110,"Timber Tract Operations"]
[113210,"Forest Nurseries and Gathering of Forest Products"]
[113310,"Logging",500]
["Subsector 114 – Fishing, Hunting and Trapping"]
[114111,"Finfish Fishing"]
[114112,"Shellfish Fishing"]
[114119,"Other Marine Fishing"]
[114210,"Hunting and Trapping"]
["Subsector 115 – Support Activities for Agriculture and Forestry"]
[115111,"Cotton Ginning"]
[115112,"Soil Preparation, Planting, and Cultivating"]
[115113,"Crop Harvesting, Primarily by Machine"]
[115114,"Postharvest Crop Activities (except Cotton Ginning)"]
[115115,"Farm Labor Contractors and Crew Leaders"]
[115116,"Farm Management Services"]
[115210,"Support Activities for Animal Production"]
[115310,"Support Activities for Forestry  "]
["115310_a_Except   ","Forest Fire Suppression17",null,"See footnote 17"]
["115310_b_Except   ","Fuels Management Services17",null,"See footnote 17"]
[null,"Sector 21 – Mining, Quarrying, and Oil and Gas Extraction"]
["Subsector 211 – Oil and Gas Extraction"]
[211120,"Crude Petroleum Extraction",5000]
[211130,"Natural Gas Extraction",5000]
["Subsector 212 – Mining (except Oil and Gas)"]
[212111,"Bituminous Coal and Lignite Surface Mining",5000]
[212112,"Bituminous Coal Underground Mining",5000]
[212113,"Anthracite Mining",500]
[212210,"Iron Ore Mining",750]
[212221,"Gold Ore Mining",5000]
[212222,"Silver Ore Mining",500]
[212230,"Copper, Nickel, Lead, and Zinc Mining",750]
[212291,"Uranium‑Radium‑Vanadium Ore Mining",500]
[212299,"All Other Metal Ore Mining",750]
[212311,"Dimension Stone Mining and Quarrying",500]
[212312,"Crushed and Broken Limestone Mining and Quarrying",750]
[212313,"Crushed and Broken Granite Mining and Quarrying",750]
[212319,"Other Crushed and Broken Stone Mining and Quarrying",500]
[212321,"Construction Sand and Gravel Mining",500]
[212322,"Industrial Sand Mining",500]
[212324,"Kaolin and Ball Clay Mining",750]
[212325,"Clay and Ceramic and Refractory Minerals Mining  ",500]
[212391,"Potash, Soda, and Borate Mineral Mining",750]
[212392,"Phosphate Rock Mining",5000]
[212393,"Other Chemical and Fertilizer Mineral Mining",500]
[212399,"All Other Nonmetallic Mineral Mining",500]
["Subsector 213 – Support Activities for Mining"]
[213111,"Drilling Oil and Gas Wells",5000]
[213112,"Support Activities for Oil and Gas Operations"]
[213113,"Support Activities for Coal Mining"]
[213114,"Support Activities for Metal Mining"]
[213115,"Support Activities for Nonmetallic Minerals (except Fuels)"]
[null,"Sector 22 – Utilities"]
["Subsector 221 – Utilities"]
[221111,"Hydroelectric Power Generation",500]
[221112,"Fossil Fuel Electric Power Generation",750]
[221113,"Nuclear Electric Power Generation",750]
[221114,"Solar Electric Power Generation",500]
[221115,"Wind Electric Power Generation",500]
[221116,"Geothermal Electric Power Generation",500]
[221117,"Biomass Electric Power Generation",500]
[221118,"Other Electric Power Generation",500]
[221121,"Electric Bulk Power Transmission and Control",500]
[221122,"Electric Power Distribution",5000]
[221210,"Natural Gas Distribution",5000]
[221310,"Water Supply and Irrigation Systems"]
[221320,"Sewage Treatment Facilities"]
[221330,"Steam and Air‑Conditioning Supply"]
[null,"Sector 23 – Construction"]
["Subsector  236 – Construction of Buildings"]
[236115,"New Single-family Housing Construction (Except For-Sale Builders)"]
[236116,"New Multifamily Housing Construction (except For-Sale Builders)"]
[236117,"New Housing For-Sale Builders"]
[236118,"Residential Remodelers"]
[236210,"Industrial Building Construction"]
[236220,"Commercial and Institutional Building Construction"]
["Subsector 237 – Heavy and Civil Engineering Construction"]
[237110,"Water and Sewer Line and Related Structures Construction"]
[237120,"Oil and Gas Pipeline and Related Structures Construction"]
[237130,"Power and Communication Line and Related Structures Construction"]
[237210,"Land Subdivision"]
[237310,"Highway, Street, and Bridge Construction"]
[237990,"Other Heavy and Civil Engineering Construction"]
["237990_Except   ","Dredging and Surface Cleanup Activities2",null,"See footnote 2"]
["Subsector 238 – Specialty Trade Contractors"]
[238110,"Poured Concrete Foundation and Structure Contractors"]
[238120,"Structural Steel and Precast Concrete Contractors"]
[238130,"Framing Contractors"]
[238140,"Masonry Contractors"]
[238500,"Glass and Glazing Contractors"]
[238160,"Roofing Contractors"]
[238170,"Siding Contractors"]
[238190,"Other Foundation, Structure, and Building Exterior Contractors"]
[238210,"Electrical Contractors and Other Wiring Installation Contractors"]
[238220,"Plumbing, Heating, and Air‑Conditioning Contractors   "]
[238290,"Other Building Equipment Contractors"]
[238310,"Drywall and Insulation Contractors"]
[238320,"Painting and Wall Covering Contractors"]
[238330,"Flooring Contractors"]
[238340,"Tile and Terrazzo Contractors"]
[238350,"Finish Carpentry Contractors"]
[238390,"Other Building Finishing Contractors"]
[238910,"Site Preparation Contractors"]
[238990,"All Other Specialty Trade Contractors"]
["238990_Except   ","Building and Property Specialty Trade Services 13",null,"See footnote 13"]
[null,"Sector 31 – 33 – Manufacturing"]
["Subsector 311 – Food Manufacturing"]
[311111,"Dog and Cat Food Manufacturing",5000]
[311119,"Other Animal Food Manufacturing",500]
[311211,"Flour Milling",5000]
[311212,"Rice Milling",500]
[311213,"Malt Manufacturing",500]
[311221,"Wet Corn Milling",5000]
[311224,"Soybean and Other Oilseed Processing",5000]
[311225,"Fats and Oils Refining and Blending",5000]
[311230,"Breakfast Cereal Manufacturing",5000]
[311313,"Beet Sugar Manufacturing",750]
[311314,"Cane Sugar Manufacturing",5000]
[311340,"Nonchocolate Confectionery Manufacturing",5000]
[311351,"Chocolate and Confectionery Manufacturing from Cacao Beans",5000]
[311352,"Confectionery Manufacturing from Purchased Chocolate",5000]
[311411,"Frozen Fruit, Juice and Vegetable Manufacturing",5000]
[311412,"Frozen Specialty Food Manufacturing",5000]
[311421,"Fruit and Vegetable Canning3",5000,"See footnote 3"]
[311422,"Specialty Canning",5000]
[311423,"Dried and Dehydrated Food Manufacturing",750]
[311511,"Fluid Milk Manufacturing",5000]
[311512,"Creamery Butter Manufacturing",750]
[311513,"Cheese Manufacturing",5000]
[311514,"Dry, Condensed, and Evaporated Dairy Product Manufacturing",750]
[311520,"Ice Cream and Frozen Dessert Manufacturing",5000]
[311611,"Animal (except Poultry) Slaughtering",5000]
[311612,"Meat Processed from Carcasses",5000]
[311613,"Rendering and Meat Byproduct Processing",750]
[311615,"Poultry Processing",5000]
[311710,"Seafood Product Preparation and Packaging",750]
[311811,"Retail Bakeries",500]
[311812,"Commercial Bakeries",5000]
[311813,"Frozen Cakes, Pies, and Other Pastries Manufacturing",750]
[311821,"Cookie and Cracker Manufacturing",5000]
[311824,"Dry Pasta, Dough, and Flour Mixes Manufacturing from Purchased Flour",750]
[311830,"Tortilla Manufacturing",5000]
[311911,"Roasted Nuts and Peanut Butter Manufacturing",750]
[311919,"Other Snack Food Manufacturing",5000]
[311920,"Coffee and Tea Manufacturing",750]
[311930,"Flavoring Syrup and Concentrate Manufacturing",5000]
[311941,"Mayonnaise, Dressing and Other Prepared Sauce Manufacturing",750]
[311942,"Spice and Extract Manufacturing",500]
[311991,"Perishable Prepared Food Manufacturing",500]
[311999,"All Other Miscellaneous Food Manufacturing",500]
["Subsector 312 – Beverage and Tobacco Product Manufacturing"]
[312111,"Soft Drink Manufacturing  ",5000]
[312112,"Bottled Water Manufacturing",5000]
[312113,"Ice Manufacturing",750]
[312120,"Breweries",5000]
[312130,"Wineries",5000]
[312140,"Distilleries",5000]
[312230,"Tobacco Manufacturing",5000]
["Subsector 313 – Textile Mills"]
[313110,"Fiber, Yarn, and Thread Mills",5000]
[313210,"Broadwoven Fabric Mills",5000]
[313220,"Narrow Fabric Mills and Schiffli Machine Embroidery",500]
[313230,"Nonwoven Fabric Mills",750]
[313240,"Knit Fabric Mills",500]
[313310,"Textile and Fabric Finishing Mills",5000]
[313320,"Fabric Coating Mills",5000]
["Subsector 314 – Textile Product Mills"]
[314110,"Carpet and Rug Mills",5000]
[314120,"Curtain and Linen Mills",750]
[314910,"Textile Bag and Canvas Mills",500]
[314994,"Rope, Cordage, Twine, Tire Cord, and Tire Fabric Mills",5000]
[314999,"All Other Miscellaneous Textile Product Mills",500]
["Subsector 315 – Apparel Manufacturing"]
[315110,"Hosiery and Sock Mills",750]
[315190,"Other Apparel Knitting Mills",750]
[315210,"Cut and Sew Apparel Contractors",750]
[315220,"Men's and Boys' Cut and Sew Apparel Manufacturing",750]
[315240,"Women's, Girls', and Infants' Cut and Sew Apparel Manufacturing",750]
[315280,"Other Cut and Sew Apparel Manufacturing",750]
[315990,"Apparel Accessories and Other Apparel Manufacturing",500]
["Subsector 316 – Leather and Allied Product Manufacturing"]
[316110,"Leather and Hide Tanning and Finishing",500]
[316210,"Footwear Manufacturing",5000]
[316992,"Women’s Handbag and Purse Manufacturing",750]
[316998,"All Other Leather Good and Allied Product Manufacturing",500]
["Subsector 321 – Wood Product Manufacturing"]
[321113,"Sawmills",500]
[321114,"Wood Preservation  ",500]
[321211,"Hardwood Veneer and Plywood Manufacturing  ",500]
[321212,"Softwood Veneer and Plywood Manufacturing  ",5000]
[321213,"Engineered Wood Member (except Truss) Manufacturing  ",750]
[321214,"Truss Manufacturing  ",500]
[321219,"Reconstituted Wood Product Manufacturing  ",750]
[321911,"Wood Window and Door Manufacturing  ",5000]
[321912,"Cut Stock, Resawing Lumber, and Planing  ",500]
[321918,"Other Millwork (including Flooring)  ",500]
[321920,"Wood Container and Pallet Manufacturing",500]
[321991,"Manufactured Home (Mobile Home) Manufacturing",5000]
[321992,"Prefabricated Wood Building Manufacturing",500]
[321999,"All Other Miscellaneous Wood Product Manufacturing",500]
["Subsector 322 – Paper Manufacturing"]
[322110,"Pulp Mills",750]
[322121,"Paper (except Newsprint) Mills",5000]
[322122,"Newsprint Mills",750]
[322130,"Paperboard Mills",5000]
[322211,"Corrugated and Solid Fiber Box Manufacturing",5000]
[322212,"Folding Paperboard Box Manufacturing",750]
[322219,"Other Paperboard Container Manufacturing",5000]
[322220,"Paper Bag and Coated and Treated Paper Manufacturing",750]
[322230,"Stationery Product Manufacturing",750]
[322291,"Sanitary Paper Product Manufacturing",5000]
[322299,"All Other Converted Paper Product Manufacturing  ",500]
["Subsector 323 – Printing and Related Support Activities"]
[323111,"Commercial Printing (except Screen and Books)",500]
[323113,"Commercial Screen Printing",500]
[323117,"Books Printing",5000]
[323120,"Support Activities for Printing",500]
["Subsector 324 – Petroleum and Coal Products Manufacturing"]
[324110,"Petroleum Refineries4",5000,"See footnote 4"]
[324121,"Asphalt Paving Mixture and Block Manufacturing",500]
[324122,"Asphalt Shingle and Coating Materials Manufacturing",750]
[324191,"Petroleum Lubricating Oil and Grease Manufacturing",750]
[324199,"All Other Petroleum and Coal Products Manufacturing",500]
["Subsector 325 – Chemical Manufacturing"]
[325110,"Petrochemical Manufacturing",5000]
[325120,"Industrial Gas Manufacturing",5000]
[325130,"Synthetic Dye and Pigment Manufacturing",5000]
[325180,"Other Basic Inorganic Chemical Manufacturing",5000]
[325193,"Ethyl Alcohol Manufacturing",5000]
[325194,"Cyclic Crude, Intermediate, and Gum and Wood Chemical Manufacturing",5000]
[325199,"All Other Basic Organic Chemical Manufacturing  ",5000]
[325211,"Plastics Material and Resin Manufacturing",5000]
[325212,"Synthetic Rubber Manufacturing",5000]
[325220,"Artificial and Synthetic Fibers and Filaments Manufacturing",5000]
[325311,"Nitrogenous Fertilizer Manufacturing",5000]
[325312,"Phosphatic Fertilizer Manufacturing",750]
[325314,"Fertilizer (Mixing Only) Manufacturing",500]
[325320,"Pesticide and Other Agricultural Chemical Manufacturing",5000]
[325411,"Medicinal and Botanical Manufacturing",5000]
[325412,"Pharmaceutical Preparation Manufacturing",5000]
[325413,"In‑Vitro Diagnostic Substance Manufacturing",5000]
[325414,"Biological Product (except Diagnostic) Manufacturing",5000]
[325510,"Paint and Coating Manufacturing",5000]
[325520,"Adhesive Manufacturing",500]
[325611,"Soap and Other Detergent Manufacturing",5000]
[325612,"Polish and Other Sanitation Good Manufacturing  ",750]
[325613,"Surface Active Agent Manufacturing",750]
[325620,"Toilet Preparation Manufacturing",5000]
[325910,"Printing Ink Manufacturing",500]
[325920,"Explosives Manufacturing",750]
[325991,"Custom Compounding of Purchased Resins",500]
[325992,"Photographic Film, Paper, Plate and Chemical Manufacturing",5000]
[325998,"All Other Miscellaneous Chemical Product and Preparation Manufacturing",500]
["Subsector 326 – Plastics and Rubber Products Manufacturing"]
[326111,"Plastic Bag and Pouch Manufacturing",750]
[326112,"Plastics Packaging Film and Sheet (including Laminated) Manufacturing",5000]
[326113,"Unlaminated Plastics Film and Sheet (except Packaging) Manufacturing",750]
[326121,"Unlaminated Plastics Profile Shape Manufacturing",500]
[326122,"Plastics Pipe and Pipe Fitting Manufacturing",750]
[326130,"Laminated Plastics Plate, Sheet (except Packaging), and Shape Manufacturing",500]
[326140,"Polystyrene Foam Product Manufacturing",5000]
[326500,"Urethane and Other Foam Product (except Polystyrene) Manufacturing",750]
[326160,"Plastics Bottle Manufacturing",5000]
[326191,"Plastics Plumbing Fixture Manufacturing",750]
[326199,"All Other Plastics Product Manufacturing",750]
[326211,"Tire Manufacturing (except Retreading)5",5000,"See footnote 5"]
[326212,"Tire Retreading",500]
[326220,"Rubber and Plastics Hoses and Belting Manufacturing",750]
[326291,"Rubber Product Manufacturing for Mechanical Use",750]
[326299,"All Other Rubber Product Manufacturing",500]
["Subsector 327 – Nonmetallic Mineral Product Manufacturing"]
[327110,"Pottery, Ceramics, and Plumbing Fixture Manufacturing",5000]
[327120,"Clay Building Material and Refractories Manufacturing",750]
[327211,"Flat Glass Manufacturing",5000]
[327212,"Other Pressed and Blown Glass and Glassware Manufacturing",5000]
[327213,"Glass Container Manufacturing",5000]
[327215,"Glass Product Manufacturing Made of Purchased Glass",5000]
[327310,"Cement Manufacturing",5000]
[327320,"Ready‑Mix Concrete Manufacturing",500]
[327331,"Concrete Block and Brick Manufacturing",500]
[327332,"Concrete Pipe Manufacturing",750]
[327390,"Other Concrete Product Manufacturing",500]
[327410,"Lime Manufacturing",750]
[327420,"Gypsum Product Manufacturing",5000]
[327910,"Abrasive Product Manufacturing",750]
[327991,"Cut Stone and Stone Product Manufacturing",500]
[327992,"Ground or Treated Mineral and Earth Manufacturing",500]
[327993,"Mineral Wool Manufacturing",5000]
[327999,"All Other Miscellaneous Nonmetallic Mineral Product Manufacturing",500]
["Subsector 331 – Primary Metal Manufacturing"]
[331110,"Iron and Steel Mills and Ferroalloy Manufacturing",5000]
[331210,"Iron and Steel Pipe and Tube Manufacturing from Purchased Steel",5000]
[331221,"Rolled Steel Shape Manufacturing",5000]
[331222,"Steel Wire Drawing",5000]
[331313,"Alumina Refining and Primary Aluminum Production",5000]
[331314,"Secondary Smelting and Alloying of Aluminum",750]
[331315,"Aluminum Sheet, Plate and Foil Manufacturing",5000]
[331318,"Other Aluminum Rolling, Drawing, and Extruding",750]
[331410,"Nonferrous Metal (except Aluminum) Smelting and Refining",5000]
[331420,"Copper Rolling, Drawing, Extruding, and Alloying",5000]
[331491,"Nonferrous Metal (except Copper and Aluminum) Rolling, Drawing and Extruding",750]
[331492,"Secondary Smelting, Refining, and Alloying of Nonferrous Metal (except Copper and Aluminum)  ",750]
[331511,"Iron Foundries",5000]
[331512,"Steel Investment Foundries",5000]
[331513,"Steel Foundries (except Investment)",500]
[331523,"Nonferrous Metal Die-Casting Foundries",500]
[331524,"Aluminum Foundries (except Die‑Casting)",500]
[331529,"Other Nonferrous Metal Foundries (except Die-Casting)",500]
["Subsector 332 – Fabricated Metal Product Manufacturing"]
[332111,"Iron and Steel Forging",750]
[332112,"Nonferrous Forging",750]
[332114,"Custom Roll Forming",500]
[332117,"Powder Metallurgy Part Manufacturing",500]
[332119,"Metal Crown, Closure, and Other Metal Stamping (except Automotive)",500]
[332215,"Metal Kitchen Cookware, Utensil, Cutlery, and Flatware (except Precious) Manufacturing",750]
[332216,"Saw Blade and Handtool Manufacturing",750]
[332311,"Prefabricated Metal Building and Component Manufacturing",750]
[332312,"Fabricated Structural Metal Manufacturing",500]
[332313,"Plate Work Manufacturing",750]
[332321,"Metal Window and Door Manufacturing",750]
[332322,"Sheet Metal Work Manufacturing",500]
[332323,"Ornamental and Architectural Metal Work Manufacturing",500]
[332410,"Power Boiler and Heat Exchanger Manufacturing  ",750]
[332420,"Metal Tank (Heavy Gauge) Manufacturing",750]
[332431,"Metal Can Manufacturing",5000]
[332439,"Other Metal Container Manufacturing",500]
[332510,"Hardware Manufacturing",750]
[332613,"Spring Manufacturing",500]
[332618,"Other Fabricated Wire Product Manufacturing",500]
[332710,"Machine Shops",500]
[332721,"Precision Turned Product Manufacturing",500]
[332722,"Bolt, Nut, Screw, Rivet and Washer Manufacturing",500]
[332811,"Metal Heat Treating",750]
[332812,"Metal Coating, Engraving (except Jewelry and Silverware), and Allied Services to Manufacturers",500]
[332813,"Electroplating, Plating, Polishing, Anodizing and Coloring",500]
[332911,"Industrial Valve Manufacturing",750]
[332912,"Fluid Power Valve and Hose Fitting Manufacturing",5000]
[332913,"Plumbing Fixture Fitting and Trim Manufacturing",5000]
[332919,"Other Metal Valve and Pipe Fitting Manufacturing",750]
[332991,"Ball and Roller Bearing Manufacturing",5000]
[332992,"Small Arms Ammunition Manufacturing",5000]
[332993,"Ammunition (except Small Arms) Manufacturing",5000]
[332994,"Small Arms, Ordnance, and Ordnance Accessories Manufacturing",5000]
[332996,"Fabricated Pipe and Pipe Fitting Manufacturing",500]
[332999,"All Other Miscellaneous Fabricated Metal Product Manufacturing",750]
["Subsector 333 – Machinery Manufacturing6",null,null,"See footnote 6"]
[333111,"Farm Machinery and Equipment Manufacturing  ",5000]
[333112,"Lawn and Garden Tractor and Home Lawn and Garden Equipment Manufacturing",5000]
[333120,"Construction Machinery Manufacturing",5000]
[333131,"Mining Machinery and Equipment Manufacturing",500]
[333132,"Oil and Gas Field Machinery and Equipment Manufacturing",5000]
[333241,"Food Product Machinery Manufacturing",500]
[333242,"Semiconductor Machinery Manufacturing",5000]
[333243,"Sawmill, Woodworking, and Paper Machinery Manufacturing",500]
[333244,"Printing Machinery and Equipment Manufacturing",750]
[333249,"Other Industrial Machinery Manufacturing",500]
[333314,"Optical Instrument and Lens Manufacturing",500]
[333316,"Photographic and Photocopying Equipment Manufacturing",5000]
[333318,"Other Commercial and Service Industry Machinery Manufacturing",5000]
[333413,"Industrial and Commercial Fan and Blower and Air Purification Equipment Manufacturing",500]
[333414,"Heating Equipment (except Warm Air Furnaces) Manufacturing",500]
[333415,"Air‑Conditioning and Warm Air Heating Equipment and Commercial and Industrial Refrigeration Equipment Manufacturing",5000]
[333511,"Industrial Mold Manufacturing",500]
[333514,"Special Die and Tool, Die Set, Jig and Fixture Manufacturing",500]
[333515,"Cutting Tool and Machine Tool Accessory Manufacturing",500]
[333517,"Machine Tool Manufacturing",500]
[333519,"Rolling Mill and Other Metalworking Machinery Manufacturing",500]
[333611,"Turbine and Turbine Generator Set Unit Manufacturing",5000]
[333612,"Speed Changer, Industrial High‑Speed Drive and Gear Manufacturing",750]
[333613,"Mechanical Power Transmission Equipment Manufacturing",750]
[333618,"Other Engine Equipment Manufacturing",5000]
[333912,"Air and Gas Compressor Manufacturing",5000]
[333914,"Measuring, Dispensing, and Other Pumping Equipment Manufacturing",750]
[333921,"Elevator and Moving Stairway Manufacturing",5000]
[333922,"Conveyor and Conveying Equipment Manufacturing  ",500]
[333923,"Overhead Traveling Crane, Hoist and Monorail System Manufacturing",5000]
[333924,"Industrial Truck, Tractor, Trailer and Stacker Machinery Manufacturing",750]
[333991,"Power‑Driven Hand Tool Manufacturing",500]
[333992,"Welding and Soldering Equipment Manufacturing",5000]
[333993,"Packaging Machinery Manufacturing",500]
[333994,"Industrial Process Furnace and Oven Manufacturing",500]
[333995,"Fluid Power Cylinder and Actuator Manufacturing",750]
[333996,"Fluid Power Pump and Motor Manufacturing",5000]
[333997,"Scale and Balance Manufacturing",500]
[333999,"All Other Miscellaneous General Purpose Machinery Manufacturing",500]
["Subsector 334 – Computer and Electronic Product Manufacturing6",null,null,"See footnote 6"]
[334111,"Electronic Computer Manufacturing",5000]
[334112,"Computer Storage Device Manufacturing",5000]
[334118,"Computer Terminal and Other Computer Peripheral Equipment Manufacturing",5000]
[334210,"Telephone Apparatus Manufacturing",5000]
[334220,"Radio and Television Broadcasting and Wireless Communications Equipment Manufacturing",5000]
[334290,"Other Communications Equipment Manufacturing",750]
[334310,"Audio and Video Equipment Manufacturing",750]
[334412,"Bare Printed Circuit Board Manufacturing",750]
[334413,"Semiconductor and Related Device Manufacturing",5000]
[334416,"Capacitor, Resistor, Coil, Transformer, and Other Inductor Manufacturing",500]
[334417,"Electronic Connector Manufacturing",5000]
[334418,"Printed Circuit Assembly (Electronic Assembly) Manufacturing",750]
[334419,"Other Electronic Component Manufacturing",750]
[334510,"Electromedical and Electrotherapeutic Apparatus Manufacturing",5000]
[334511,"Search, Detection, Navigation, Guidance, Aeronautical, and Nautical System and Instrument Manufacturing",5000]
[334512,"Automatic Environmental Control Manufacturing for Residential, Commercial and Appliance Use",500]
[334513,"Instruments and Related Products Manufacturing for Measuring, Displaying, and Controlling Industrial Process Variables",750]
[334514,"Totalizing Fluid Meter and Counting Device Manufacturing",750]
[334515,"Instrument Manufacturing for Measuring and Testing Electricity and Electrical Signals",750]
[334516,"Analytical Laboratory Instrument Manufacturing",5000]
[334517,"Irradiation Apparatus Manufacturing",5000]
[334519,"Other Measuring and Controlling Device Manufacturing",500]
[334613,"Blank Magnetic and Optical Recording Media Manufacturing",5000]
[334614,"Software and Other Prerecorded Compact Disc, Tape, and Record Reproducing",5000]
["Subsector 335 – Electrical Equipment, Appliance and Component Manufacturing6",null,null,"See footnote 6"]
[335110,"Electric Lamp Bulb and Part Manufacturing",5000]
[335121,"Residential Electric Lighting Fixture Manufacturing",750]
[335122,"Commercial, Industrial and Institutional Electric Lighting Fixture Manufacturing",500]
[335129,"Other Lighting Equipment Manufacturing",500]
[335210,"Small Electrical Appliance Manufacturing",5000]
[335220,"Major Household Appliance Manufacturing",5000]
[335311,"Power, Distribution and Specialty Transformer Manufacturing",750]
[335312,"Motor and Generator Manufacturing",5000]
[335313,"Switchgear and Switchboard Apparatus Manufacturing",5000]
[335314,"Relay and Industrial Control Manufacturing",750]
[335911,"Storage Battery Manufacturing",5000]
[335912,"Primary Battery Manufacturing",5000]
[335921,"Fiber Optic Cable Manufacturing",5000]
[335929,"Other Communication and Energy Wire Manufacturing",5000]
[335931,"Current‑Carrying Wiring Device Manufacturing",500]
[335932,"Noncurrent‑Carrying Wiring Device Manufacturing",5000]
[335991,"Carbon and Graphite Product Manufacturing",750]
[335999,"All Other Miscellaneous Electrical Equipment and Component Manufacturing",500]
["Subsector 336 – Transportation Equipment Manufacturing6",null,null,"See footnote 6"]
[336111,"Automobile Manufacturing",5000]
[336112,"Light Truck and Utility Vehicle Manufacturing  ",5000]
[336120,"Heavy Duty Truck Manufacturing",5000]
[336211,"Motor Vehicle Body Manufacturing",5000]
[336212,"Truck Trailer Manufacturing",5000]
[336213,"Motor Home Manufacturing",5000]
[336214,"Travel Trailer and Camper Manufacturing",5000]
[336310,"Motor Vehicle Gasoline Engine and Engine Parts Manufacturing",5000]
[336320,"Motor Vehicle Electrical and Electronic Equipment Manufacturing",5000]
[336330,"Motor Vehicle Steering and Suspension Components (except Spring) Manufacturing",5000]
[336340,"Motor Vehicle Brake System Manufacturing",5000]
[336350,"Motor Vehicle Transmission and Power Train Parts Manufacturing",5000]
[336360,"Motor Vehicle Seating and Interior Trim Manufacturing",5000]
[336370,"Motor Vehicle Metal Stamping  ",5000]
[336390,"Other Motor Vehicle Parts Manufacturing",5000]
[336411,"Aircraft Manufacturing",5000]
[336412,"Aircraft Engine and Engine Parts Manufacturing",5000]
[336413,"Other Aircraft Part and Auxiliary Equipment Manufacturing7   ",5000,"See footnote 7"]
[336414,"Guided Missile and Space Vehicle Manufacturing",5000]
[336415,"Guided Missile and Space Vehicle Propulsion Unit and Propulsion Unit Parts Manufacturing",5000]
[336419,"Other Guided Missile and Space Vehicle Parts and Auxiliary Equipment Manufacturing",5000]
[336510,"Railroad Rolling Stock Manufacturing  ",5000]
[336611,"Ship Building and Repairing",5000]
[336612,"Boat Building",5000]
[336991,"Motorcycle, Bicycle and Parts Manufacturing",5000]
[336992,"Military Armored Vehicle, Tank and Tank Component Manufacturing",5000]
[336999,"All Other Transportation Equipment Manufacturing  ",5000]
["Subsector 337 – Furniture and Related Product Manufacturing"]
[337110,"Wood Kitchen Cabinet and Counter Top Manufacturing",750]
[337121,"Upholstered Household Furniture Manufacturing",5000]
[337122,"Nonupholstered Wood Household Furniture Manufacturing",750]
[337124,"Metal Household Furniture Manufacturing",750]
[337125,"Household Furniture (except Wood and Metal) Manufacturing",750]
[337127,"Institutional Furniture Manufacturing",500]
[337211,"Wood Office Furniture Manufacturing",5000]
[337212,"Custom Architectural Woodwork and Millwork Manufacturing",500]
[337214,"Office Furniture (Except Wood) Manufacturing",5000]
[337215,"Showcase, Partition, Shelving, and Locker Manufacturing",500]
[337910,"Mattress Manufacturing",5000]
[337920,"Blind and Shade Manufacturing",5000]
["Subsector 339 – Miscellaneous Manufacturing"]
[339112,"Surgical and Medical Instrument Manufacturing",5000]
[339113,"Surgical Appliance and Supplies Manufacturing",750]
[339114,"Dental Equipment and Supplies Manufacturing",750]
[339115,"Ophthalmic Goods Manufacturing",5000]
[339116,"Dental Laboratories",500]
[339910,"Jewelry and Silverware Manufacturing",500]
[339920,"Sporting and Athletic Goods Manufacturing",750]
[339930,"Doll, Toy, and Game Manufacturing",500]
[339940,"Office Supplies (except Paper) Manufacturing",750]
[339950,"Sign Manufacturing",500]
[339991,"Gasket, Packing, and Sealing Device Manufacturing  ",500]
[339992,"Musical Instrument Manufacturing",5000]
[339993,"Fastener, Button, Needle and Pin Manufacturing",750]
[339994,"Broom, Brush and Mop Manufacturing",500]
[339995,"Burial Casket Manufacturing",5000]
[339999,"All Other Miscellaneous Manufacturing",500]
[null,"Sector 42 – Wholesale Trade"]
[null,"(These NAICS codes shall not be used to classify Government acquisitions for supplies.  They also shall not be used by Federal government contractors when subcontracting for the acquisition for supplies.  The applicable manufacturing NAICS code shall be used to classify acquisitions for supplies.  A Wholesale Trade or Retail Trade business concern submitting an offer or a quote on a supply acquisition is categorized as a nonmanufacturer and deemed small if it has 500 or fewer employees and meets the requirements of 13 CFR 121.406.)"]
["Subsector 423 –  Merchant Wholesalers, Durable Goods"]
[423110,"Automobile and Other Motor Vehicle Merchant Wholesalers",500]
[423120,"Motor Vehicle Supplies and New Parts Merchant Wholesalers",500]
[423130,"Tire and Tube Merchant Wholesalers",500]
[423140,"Motor Vehicle Parts (Used) Merchant Wholesalers",500]
[423210,"Furniture Merchant Wholesalers",500]
[423220,"Home Furnishing Merchant Wholesalers",500]
[423310,"Lumber, Plywood, Millwork, and Wood Panel Merchant Wholesalers",500]
[423320,"Brick, Stone, and Related Construction Material Merchant Wholesalers",500]
[423330,"Roofing, Siding, and Insulation Material Merchant Wholesalers",500]
[423390,"Other Construction Material Merchant Wholesalers",500]
[423410,"Photographic Equipment and Supplies Merchant Wholesalers",500]
[423420,"Office Equipment Merchant Wholesalers",500]
[423430,"Computer and Computer Peripheral Equipment and Software Merchant Wholesalers",500]
[423440,"Other Commercial Equipment Merchant Wholesalers",500]
[423450,"Medical, Dental, and Hospital Equipment and Supplies Merchant Wholesalers",500]
[423460,"Ophthalmic Goods Merchant Wholesalers",500]
[423490,"Other Professional Equipment and Supplies Merchant Wholesalers",500]
[423510,"Metal Service Centers and Other Metal Merchant Wholesalers",500]
[423520,"Coal and Other Mineral and Ore Merchant Wholesalers",500]
[423610,"Electrical Apparatus and Equipment, Wiring Supplies, and Related Equipment Merchant Wholesalers",500]
[423620,"Household Appliances, Electric Housewares, and Consumer Electronics Merchant Wholesalers",500]
[423690,"Other Electronic Parts and Equipment Merchant Wholesalers",500]
[423710,"Hardware Merchant Wholesalers",500]
[423720,"Plumbing and Heating Equipment and Supplies (Hydronics) Merchant Wholesalers",500]
[423730,"Warm Air Heating and Air‑Conditioning Equipment and Supplies Merchant Wholesalers",500]
[423740,"Refrigeration Equipment and Supplies Merchant Wholesalers",500]
[423810,"Construction and Mining (except Oil Well) Machinery and Equipment Merchant Wholesalers",500]
[423820,"Farm and Garden Machinery and Equipment Merchant Wholesalers",500]
[423830,"Industrial Machinery and Equipment Merchant Wholesalers",500]
[423840,"Industrial Supplies Merchant Wholesalers",500]
[423850,"Service Establishment Equipment and Supplies Merchant Wholesalers",500]
[423860,"Transportation Equipment and Supplies (except Motor Vehicle) Merchant Wholesalers",500]
[423910,"Sporting and Recreational Goods and Supplies Merchant Wholesalers",500]
[423920,"Toy and Hobby Goods and Supplies Merchant Wholesalers",500]
[423930,"Recyclable Material Merchant Wholesalers",500]
[423940,"Jewelry, Watch, Precious Stone, and Precious Metal Merchant Wholesalers",500]
[423990,"Other Miscellaneous Durable Goods Merchant Wholesalers",500]
["Subsector 424 – Merchant Wholesalers, Nondurable Goods"]
[424110,"Printing and Writing Paper Merchant Wholesalers",500]
[424120,"Stationary and Office Supplies Merchant Wholesalers",500]
[424130,"Industrial and Personal Service Paper Merchant Wholesalers",500]
[424210,"Drugs and Druggists’ Sundries Merchant Wholesalers",500]
[424310,"Piece Goods, Notions, and Other Dry Goods Merchant Wholesalers",500]
[424320,"Men’s and Boys’ Clothing and Furnishings Merchant Wholesalers",500]
[424330,"Women’s, Children’s, and Infants’ Clothing and Accessories Merchant Wholesalers",500]
[424340,"Footwear Merchant Wholesalers",500]
[424410,"General Line Grocery Merchant Wholesalers",500]
[424420,"Packaged Frozen Food Merchant Wholesalers",500]
[424430,"Dairy Product (except Dried or Canned) Merchant Wholesalers",500]
[424440,"Poultry and Poultry Product Merchant Wholesalers",500]
[424450,"Confectionery Merchant Wholesalers",500]
[424460,"Fish and Seafood Merchant Wholesalers",500]
[424470,"Meat and Meat Product Merchant Wholesalers",500]
[424480,"Fresh Fruit and Vegetable Merchant Wholesalers",500]
[424490,"Other Grocery and Related Products Merchant Wholesalers",500]
[424510,"Grain and Field Bean Merchant Wholesalers",500]
[424520,"Livestock Merchant Wholesalers",500]
[424590,"Other Farm Product Raw Material Merchant Wholesalers",500]
[424610,"Plastics Materials and Basic Forms and Shapes Merchant Wholesalers",500]
[424690,"Other Chemical and Allied Products Merchant Wholesalers",500]
[424710,"Petroleum Bulk Stations and Terminals",500]
[424720,"Petroleum and Petroleum Products Merchant Wholesalers (except Bulk Stations and Terminals)",500]
[424810,"Beer and Ale Merchant Wholesalers",500]
[424820,"Wine and Distilled Alcoholic Beverage Merchant Wholesalers",500]
[424910,"Farm Supplies Merchant Wholesalers",500]
[424920,"Book, Periodical, and Newspaper Merchant Wholesalers",500]
[424930,"Flower, Nursery Stock, and Florists’ Supplies Merchant Wholesalers",500]
[424940,"Tobacco and Tobacco Product Merchant Wholesalers",500]
[424950,"Paint, Varnish, and Supplies Merchant Wholesalers",500]
[424990,"Other Miscellaneous Nondurable Goods Merchant Wholesalers",500]
["Subsector 425 – Wholesale Electronic Markets and Agents and Brokers"]
[425110,"Business to Business Electronic Markets",500]
[425120,"Wholesale Trade Agents and Brokers",500]
[null,"Sector 44 - 45 – Retail Trade"]
[null,"(These NAICS codes shall not be used to classify Government acquisitions for supplies.  They also shall not be used by Federal government contractors when subcontracting for the acquisition for supplies.  The applicable manufacturing NAICS code shall be used to classify acquisitions for supplies.  A Wholesale Trade or Retail Trade business concern submitting an offer or a quote on a supply acquisition is categorized as a nonmanufacturer and deemed small if it has 500 or fewer employees and meets the requirements of 13 CFR 121.406.)"]
["Subsector 441 – Motor Vehicle and Parts Dealers"]
[441110,"New Car Dealers",500]
[441120,"Used Car Dealers"]
[441210,"Recreational Vehicle Dealers  "]
[441222,"Boat Dealers"]
[441228,"Motorcycle, ATV, and All Other Motor Vehicle Dealers"]
[441310,"Automotive Parts and Accessories Stores"]
[441320,"Tire Dealers"]
["Subsector 442 – Furniture and Home Furnishings Stores"]
[442110,"Furniture Stores"]
[442210,"Floor Covering Stores"]
[442291,"Window Treatment Stores"]
[442299,"All Other Home Furnishings Stores"]
["Subsector 443 – Electronics and Appliance Stores"]
[443141,"Household Appliance Stores"]
[443142,"Electronics Stores"]
["Subsector 444 – Building Material and Garden Equipment and Supplies Dealers"]
[444110,"Home Centers"]
[444120,"Paint and Wallpaper Stores"]
[444130,"Hardware Stores"]
[444190,"Other Building Material Dealers"]
[444210,"Outdoor Power Equipment Stores"]
[444220,"Nursery and Garden Centers"]
["Subsector 445 – Food and Beverage Stores"]
[445110,"Supermarkets and Other Grocery (except Convenience) Stores"]
[445120,"Convenience Stores"]
[445210,"Meat Markets"]
[445220,"Fish and Seafood Markets"]
[445230,"Fruit and Vegetable Markets"]
[445291,"Baked Goods Stores"]
[445292,"Confectionery and Nut Stores"]
[445299,"All Other Specialty Food Stores"]
[445310,"Beer, Wine and Liquor Stores"]
["Subsector 446 – Health and Personal Care Stores"]
[446110,"Pharmacies and Drug Stores"]
[446120,"Cosmetics, Beauty Supplies and Perfume Stores"]
[446130,"Optical Goods Stores"]
[446191,"Food (Health) Supplement Stores"]
[446199,"All Other Health and Personal Care Stores"]
["Subsector 447 – Gasoline Stations"]
[447110,"Gasoline Stations with Convenience Stores"]
[447190,"Other Gasoline Stations"]
["Subsector 448 – Clothing and Clothing Accessories Stores"]
[448110,"Men’s Clothing Stores"]
[448120,"Women’s Clothing Stores"]
[448130,"Children’s and Infants’ Clothing Stores"]
[448140,"Family Clothing Stores"]
[448500,"Clothing Accessories Stores"]
[448190,"Other Clothing Stores"]
[448210,"Shoe Stores"]
[448310,"Jewelry Stores"]
[448320,"Luggage and Leather Goods Stores"]
["Subsector 451 – Sporting Good, Hobby, Book and Music Stores"]
[451110,"Sporting Goods Stores"]
[451120,"Hobby, Toy and Game Stores"]
[451130,"Sewing, Needlework and Piece Goods Stores"]
[451140,"Musical Instrument and Supplies Stores"]
[451211,"Book Stores"]
[451212,"News Dealers and Newsstands"]
["Subsector 452 – General Merchandise Stores"]
[452210,"Department Stores"]
[452311,"Warehouse Clubs and Supercenters"]
[452319,"All Other General Merchandise Stores"]
["Subsector 453 – Miscellaneous Store Retailers"]
[453110,"Florists"]
[453210,"Office Supplies and Stationery Stores"]
[453220,"Gift, Novelty and Souvenir Stores"]
[453310,"Used Merchandise Stores"]
[453910,"Pet and Pet Supplies Stores"]
[453920,"Art Dealers"]
[453930,"Manufactured (Mobile) Home Dealers"]
[453991,"Tobacco Stores"]
[453998,"All Other Miscellaneous Store Retailers (except Tobacco Stores)"]
["Subsector 454 – Nonstore Retailers"]
[454110,"Electronic Shopping and Mail-Order Houses"]
[454210,"Vending Machine Operators"]
[454310,"Fuel Dealers",500]
[454390,"Other Direct Selling Establishments"]
[null,"Sector 48 - 49 – Transportation and Warehousing"]
["Subsector 481 – Air Transportation"]
[481111,"Scheduled Passenger Air Transportation",5000]
[481112,"Scheduled Freight Air Transportation",5000]
[481211,"Nonscheduled Chartered Passenger Air Transportation",5000]
[481212,"Nonscheduled Chartered Freight Air Transportation  ",5000]
[481219,"Other Nonscheduled Air Transportation"]
["Subsector 482 – Rail Transportation"]
[482111,"Line‑Haul Railroads",5000]
[482112,"Short Line Railroads",5000]
["Subsector 483 – Water Transportation"]
[483111,"Deep Sea Freight Transportation",500]
[483112,"Deep Sea Passenger Transportation",5000]
[483113,"Coastal and Great Lakes Freight Transportation",750]
[483114,"Coastal and Great Lakes Passenger Transportation",500]
[483211,"Inland Water Freight Transportation",750]
[483212,"Inland Water Passenger Transportation",500]
["Subsector 484 – Truck Transportation"]
[484110,"General Freight Trucking, Local"]
[484121,"General Freight Trucking, Long‑Distance, Truckload  "]
[484122,"General Freight Trucking, Long‑Distance, Less Than Truckload"]
[484210,"Used Household and Office Goods Moving"]
[484220,"Specialized Freight (except Used Goods) Trucking, Local"]
[484230,"Specialized Freight (except Used Goods) Trucking, Long‑Distance"]
["Subsector 485 – Transit and Ground Passenger Transportation"]
[485111,"Mixed Mode Transit Systems"]
[485112,"Commuter Rail Systems"]
[485113,"Bus and Other Motor Vehicle Transit Systems"]
[485119,"Other Urban Transit Systems"]
[485210,"Interurban and Rural Bus Transportation"]
[485310,"Taxi Service"]
[485320,"Limousine Service"]
[485410,"School and Employee Bus Transportation"]
[485510,"Charter Bus Industry"]
[485991,"Special Needs Transportation"]
[485999,"All Other Transit and Ground Passenger Transportation"]
["Subsector 486 – Pipeline Transportation"]
[486110,"Pipeline Transportation of Crude Oil",5000]
[486210,"Pipeline Transportation of Natural Gas"]
[486910,"Pipeline Transportation of Refined Petroleum Products",5000]
[486990,"All Other Pipeline Transportation"]
["Subsector 487 – Scenic and Sightseeing Transportation"]
[487110,"Scenic and Sightseeing Transportation, Land"]
[487210,"Scenic and Sightseeing Transportation, Water"]
[487990,"Scenic and Sightseeing Transportation, Other"]
["Subsector 488 – Support Activities for Transportation"]
[488111,"Air Traffic Control"]
[488119,"Other Airport Operations"]
[488190,"Other Support Activities for Air Transportation"]
[488210,"Support Activities for Rail Transportation"]
[488310,"Port and Harbor Operations"]
[488320,"Marine Cargo Handling"]
[488330,"Navigational Services to Shipping"]
[488390,"Other Support Activities for Water Transportation"]
[488410,"Motor Vehicle Towing"]
[488490,"Other Support Activities for Road Transportation"]
[488510,"Freight Transportation Arrangement10",null,"See footnote 10"]
["488510_Except","Non‑Vessel Owning Common Carriers and Household Goods Forwarders"]
[488991,"Packing and Crating"]
[488999,"All Other Support Activities for Transportation"]
["Subsector 491 – Postal Service"]
[491110,"Postal Service"]
["Subsector 492 – Couriers and Messengers"]
[492110,"Couriers and Express Delivery Services",5000]
[492210,"Local Messengers and Local Delivery"]
["Subsector 493 – Warehousing and Storage"]
[493110,"General Warehousing and Storage"]
[493120,"Refrigerated Warehousing and Storage"]
[493130,"Farm Product Warehousing and Storage"]
[493190,"Other Warehousing and Storage"]
[null,"Sector 51 – Information"]
["Subsector 511 – Publishing Industries (except Internet)"]
[511110,"Newspaper Publishers",5000]
[511120,"Periodical Publishers",5000]
[511130,"Book Publishers",5000]
[511140,"Directory and Mailing List Publishers",5000]
[511191,"Greeting Card Publishers",5000]
[511199,"All Other Publishers",500]
[511210,"Software Publishers20",null,"See footnote 20"]
["Subsector 512 – Motion Picture and Sound Recording Industries"]
[512110,"Motion Picture and Video Production"]
[512120,"Motion Picture and Video Distribution"]
[512131,"Motion Picture Theaters (except Drive‑Ins)"]
[512132,"Drive‑In Motion Picture Theaters"]
[512191,"Teleproduction and Other Postproduction Services"]
[512199,"Other Motion Picture and Video Industries"]
[512230,"Music Publishers",750]
[512240,"Sound Recording Studios"]
[550000,"Record Production and Distribution",500]
[512290,"Other Sound Recording Industries"]
["Subsector 515 – Broadcasting (except Internet)"]
[515111,"Radio Networks"]
[515112,"Radio Stations"]
[515120,"Television Broadcasting"]
[515210,"Cable and Other Subscription Programming"]
["Subsector 517 – Telecommunications"]
[517311,"Wired Telecommunications Carriers",5000]
[517312,"Wireless Telecommunications Carriers (except Satellite)",5000]
[517410,"Satellite Telecommunications"]
[517911,"Telecommunications Resellers",5000]
[517919,"All Other Telecommunications"]
["Subsector 518 –Data Processing, Hosting, and Related Services"]
[518210,"Data Processing, Hosting, and Related Services"]
["Subsector 519 – Other Information Services"]
[519110,"News Syndicates"]
[519120,"Libraries and Archives"]
[519130,"Internet Publishing and Broadcasting and Web Search Portals",5000]
[519190,"All Other Information Services"]
[null,"Sector 52 – Finance and Insurance"]
["Subsector 522 – Credit Intermediation and Related Activities"]
[522110,"Commercial Banking8",null,"See footnote 8"]
[522120,"Savings Institutions8",null,"See footnote 8"]
[522130,"Credit Unions8",null,"See footnote 8"]
[522190,"Other Depository Credit Intermediation8",null,"See footnote 8"]
[522210,"Credit Card Issuing8",null,"See footnote 8"]
[522220,"Sales Financing"]
[522291,"Consumer Lending"]
[522292,"Real Estate Credit"]
[522293,"International Trade Financing"]
[522294,"Secondary Market Financing"]
[522298,"All Other Nondepository Credit Intermediation"]
[522310,"Mortgage and Nonmortgage Loan Brokers"]
[522320,"Financial Transactions Processing, Reserve, and Clearinghouse Activities"]
[522390,"Other Activities Related to Credit Intermediation"]
["Subsector 523 – Financial Investments and Related Activities"]
[523110,"Investment Banking and Securities Dealing"]
[523120,"Securities Brokerage"]
[523130,"Commodity Contracts Dealing"]
[523140,"Commodity Contracts Brokerage"]
[523210,"Securities and Commodity Exchanges"]
[523910,"Miscellaneous Intermediation"]
[523920,"Portfolio Management"]
[523930,"Investment Advice"]
[523991,"Trust, Fiduciary and Custody Activities"]
[523999,"Miscellaneous Financial Investment Activities"]
["Subsector 524 – Insurance Carriers and Related Activities"]
[524113,"Direct Life Insurance Carriers"]
[524114,"Direct Health and Medical Insurance Carriers"]
[524126,"Direct Property and Casualty Insurance Carriers",5000]
[524127,"Direct Title Insurance Carriers"]
[524128,"Other Direct Insurance (except Life, Health and Medical) Carriers"]
[524130,"Reinsurance Carriers"]
[524210,"Insurance Agencies and Brokerages"]
[524291,"Claims Adjusting"]
[524292,"Third Party Administration of Insurance and Pension Funds"]
[524298,"All Other Insurance Related Activities"]
["Subsector 525 – Funds, Trusts and Other Financial Vehicles"]
[525110,"Pension Funds"]
[525120,"Health and Welfare Funds"]
[525190,"Other Insurance Funds"]
[525910,"Open‑End Investment Funds"]
[525920,"Trusts, Estates, and Agency Accounts"]
[525990,"Other Financial Vehicles"]
[null,"Sector 53 – Real Estate and Rental and Leasing"]
["Subsector 531 – Real Estate"]
[531110,"Lessors of Residential Buildings and Dwellings9",null,"See footnote 9"]
[531120,"Lessors of Nonresidential Buildings (except Miniwarehouses)9",null,"See footnote 9"]
[531130,"Lessors of Miniwarehouses and Self Storage Units9",null,"See footnote 9"]
[531190,"Lessors of Other Real Estate Property9",null,"See footnote 9"]
[531210,"Offices of Real Estate Agents and Brokers10",null,"See footnote 10"]
[531311,"Residential Property Managers"]
[531312,"Nonresidential Property Managers"]
[531320,"Offices of Real Estate Appraisers"]
[531390,"Other Activities Related to Real Estate"]
["Subsector 532 – Rental and Leasing Services"]
[532111,"Passenger Car Rental"]
[532112,"Passenger Car Leasing"]
[532120,"Truck, Utility Trailer, and RV (Recreational Vehicle) Rental and Leasing"]
[532210,"Consumer Electronics and Appliances Rental"]
[532281,"Formal Wear and Costume Rental"]
[532282,"Video Tape and Disc Rental"]
[532283,"Home Health Equipment Rental"]
[532284,"Recreational Goods Rental"]
[532289,"All Other Consumer Goods Rental"]
[532310,"General Rental Centers"]
[532411,"Commercial Air, Rail, and Water Transportation Equipment Rental and Leasing"]
[532412,"Construction, Mining and Forestry Machinery and Equipment Rental and Leasing"]
[532420,"Office Machinery and Equipment Rental and Leasing"]
[532490,"Other Commercial and Industrial Machinery and Equipment Rental and Leasing"]
["Subsector 533 – Lessors of Nonfinancial Intangible Assets (except Copyrighted Works)"]
[533110,"Lessors of Nonfinancial Intangible Assets (except Copyrighted Works)"]
[null,"Sector 54 – Professional, Scientific and Technical Services"]
["Subsector 541 – Professional, Scientific and Technical Services"]
[541110,"Offices of Lawyers"]
[541191,"Title Abstract and Settlement Offices"]
[541199,"All Other Legal Services"]
[541211,"Offices of Certified Public Accountants"]
[541213,"Tax Preparation Services"]
[541214,"Payroll Services"]
[541219,"Other Accounting Services"]
[541310,"Architectural Services"]
[541320,"Landscape Architectural Services"]
[541330,"Engineering Services"]
["541330_a_Except","Military and Aerospace Equipment and Military Weapons"]
["541330_b_Except","Contracts and Subcontracts for Engineering Services Awarded Under the National Energy Policy Act of 1992"]
["541330_c_Except","Marine Engineering and Naval Architecture"]
[541340,"Drafting Services"]
[541350,"Building Inspection Services"]
[541360,"Geophysical Surveying and Mapping Services"]
[541370,"Surveying and Mapping (except Geophysical) Services"]
[541380,"Testing Laboratories"]
[541410,"Interior Design Services"]
[541420,"Industrial Design Services"]
[541430,"Graphic Design Services"]
[541490,"Other Specialized Design Services"]
[541511,"Custom Computer Programming Services"]
[541512,"Computer Systems Design Services"]
[541513,"Computer Facilities Management Services"]
[541519,"Other Computer Related Services"]
["541519_Except","Information Technology Value Added Resellers18",500,"See footnote 18"]
[541611,"Administrative Management and General Management Consulting Services"]
[541612,"Human Resources Consulting Services"]
[541613,"Marketing Consulting Services"]
[541614,"Process, Physical Distribution and Logistics Consulting Services"]
[541618,"Other Management Consulting Services"]
[541620,"Environmental Consulting Services"]
[541690,"Other Scientific and Technical Consulting Services  "]
[541713,"Research and Technology in Nanotechnology11",5000,"See footnote 11"]
[541714,"Research and Technology in Biotechnology (except Nanobiotechnology)11",5000,"See footnote 11"]
[541715,"Research and Development in the Physical, Engineering, and Life Sciences (except Nanotechnology and Biotechnology) 11",5000,"See footnote 11"]
["541715_a_Except","Aircraft, Aircraft Engine and Engine Parts11",5000,"See footnote 11"]
["541715_b_Except","Other Aircraft Parts and Auxiliary Equipment11",5000,"See footnote 11"]
["541715_c_Except","Guided Missiles and Space Vehicles, Their Propulsion Units and Propulsion Parts11",5000,"See footnote 11"]
[541720,"Research and Development in the Social Sciences and Humanities"]
[541810,"Advertising Agencies10",null,"See footnote 10"]
[541820,"Public Relations Agencies"]
[541830,"Media Buying Agencies"]
[541840,"Media Representatives"]
[541850,"Outdoor Advertising"]
[541860,"Direct Mail Advertising"]
[541870,"Advertising Material Distribution Services"]
[541890,"Other Services Related to Advertising"]
[541910,"Marketing Research and Public Opinion Polling"]
[541921,"Photography Studios, Portrait"]
[541922,"Commercial Photography"]
[541930,"Translation and Interpretation Services"]
[541940,"Veterinary Services"]
[541990,"All Other Professional, Scientific and Technical Services"]
[null,"Sector 55 – Management of Companies and Enterprises"]
["Subsector 551 – Management of Companies and Enterprises"]
[551111,"Offices of Bank Holding Companies"]
[551112,"Offices of Other Holding Companies"]
[null,"Sector 56 – Administrative and Support, Waste Management and Remediation Services"]
["Subsector 561 – Administrative and Support Services"]
[561110,"Office Administrative Services"]
[561210,"Facilities Support Services12",null,"See footnote 12"]
[561311,"Employment Placement Agencies"]
[561312,"Executive Search Services"]
[561320,"Temporary Help Services"]
[561330,"Professional Employer Organizations"]
[561410,"Document Preparation Services"]
[561421,"Telephone Answering Services"]
[561422,"Telemarketing Bureaus and Other contact Centers"]
[561431,"Private Mail Centers"]
[561439,"Other Business Service Centers (including Copy Shops)"]
[561440,"Collection Agencies"]
[561450,"Credit Bureaus"]
[561491,"Repossession Services"]
[561492,"Court Reporting and Stenotype Services"]
[561499,"All Other Business Support Services"]
[561510,"Travel Agencies10",null,"See footnote 10"]
[561520,"Tour Operators10",null,"See footnote 10"]
[561591,"Convention and Visitors Bureaus"]
[561599,"All Other Travel Arrangement and Reservation Services"]
[561611,"Investigation Services"]
[561612,"Security Guards and Patrol Services"]
[561613,"Armored Car Services"]
[561621,"Security Systems Services (except Locksmiths)"]
[561622,"Locksmiths"]
[561710,"Exterminating and Pest Control Services"]
[561720,"Janitorial Services"]
[561730,"Landscaping Services"]
[561740,"Carpet and Upholstery Cleaning Services"]
[561790,"Other Services to Buildings and Dwellings  "]
[561910,"Packaging and Labeling Services"]
[561920,"Convention and Trade Show Organizers10",null,"See footnote 10"]
[561990,"All Other Support Services"]
[" Subsector 562 – Waste Management and Remediation Services"]
[562111,"Solid Waste Collection"]
[562112,"Hazardous Waste Collection"]
[562119,"Other Waste Collection"]
[562211,"Hazardous Waste Treatment and Disposal"]
[562212,"Solid Waste Landfill"]
[562213,"Solid Waste Combustors and Incinerators"]
[562219,"Other Nonhazardous Waste Treatment and Disposal  "]
[562910,"Remediation Services"]
["562910_Except","Environmental Remediation Services14",750,"See footnote 14"]
[562920,"Materials Recovery Facilities"]
[562991,"Septic Tank and Related Services"]
[562998,"All Other Miscellaneous Waste Management Services"]
[null,"Sector 61 – Educational Services"]
["Subsector 611 – Educational Services"]
[611110,"Elementary and Secondary Schools"]
[611210,"Junior Colleges"]
[611310,"Colleges, Universities and Professional Schools"]
[611410,"Business and Secretarial Schools"]
[611420,"Computer Training"]
[611430,"Professional and Management Development Training"]
[611511,"Cosmetology and Barber Schools"]
[611512,"Flight Training"]
[611513,"Apprenticeship Training"]
[611519,"Other Technical and Trade Schools"]
["611519_Except","Job Corps Centers16",null,"See footnote 16"]
[611610,"Fine Arts Schools"]
[611620,"Sports and Recreation Instruction"]
[611630,"Language Schools"]
[611691,"Exam Preparation and Tutoring"]
[611692,"Automobile Driving Schools"]
[611699,"All Other Miscellaneous Schools and Instruction"]
[611710,"Educational Support Services"]
[null,"Sector 62 – Health Care and Social Assistance"]
["Subsector 621 – Ambulatory Health Care Services"]
[621111,"Offices of Physicians (except Mental Health Specialists)"]
[621112,"Offices of Physicians, Mental Health Specialists"]
[621210,"Offices of Dentists"]
[621310,"Offices of Chiropractors"]
[621320,"Offices of Optometrists"]
[621330,"Offices of Mental Health Practitioners (except Physicians)"]
[621340,"Offices of Physical, Occupational and Speech Therapists and Audiologists"]
[621391,"Offices of Podiatrists"]
[621399,"Offices of All Other Miscellaneous Health Practitioners"]
[621410,"Family Planning Centers"]
[621420,"Outpatient Mental Health and Substance Abuse Centers"]
[621491,"HMO Medical Centers"]
[621492,"Kidney Dialysis Centers"]
[621493,"Freestanding Ambulatory Surgical and Emergency Centers"]
[621498,"All Other Outpatient Care Centers"]
[621511,"Medical Laboratories"]
[621512,"Diagnostic Imaging Centers"]
[621610,"Home Health Care Services"]
[621910,"Ambulance Services"]
[621991,"Blood and Organ Banks"]
[621999,"All Other Miscellaneous Ambulatory Health Care Services"]
["Subsector 622 – Hospitals"]
[622110,"General Medical and Surgical Hospitals"]
[622210,"Psychiatric and Substance Abuse Hospitals"]
[622310,"Specialty (except Psychiatric and Substance Abuse) Hospitals"]
["Subsector 623 – Nursing and Residential Care Facilities"]
[623110,"Nursing Care Facilities (Skilled Nursing Facilities)"]
[623210,"Residential Intellectual and Developmental Disability Facilities"]
[623220,"Residential Mental Health and Substance Abuse Facilities"]
[623311,"Continuing Care Retirement Communities"]
[623312,"Assisted Living Facilities for the Elderly"]
[623990,"Other Residential Care Facilities"]
["Subsector 624 – Social Assistance"]
[624110,"Child and Youth Services"]
[624120,"Services for the Elderly and Persons with Disabilities"]
[624190,"Other Individual and Family Services"]
[624210,"Community Food Services"]
[624221,"Temporary Shelters"]
[624229,"Other Community Housing Services"]
[624230,"Emergency and Other Relief Services"]
[624310,"Vocational Rehabilitation Services"]
[624410,"Child Day Care Services"]
[null,"Sector 71 – Arts, Entertainment and Recreation"]
["Subsector 711 – Performing Arts, Spectator Sports and Related Industries"]
[711110,"Theater Companies and Dinner Theaters"]
[711120,"Dance Companies"]
[711130,"Musical Groups and Artists"]
[711190,"Other Performing Arts Companies"]
[711211,"Sports Teams and Clubs"]
[711212,"Race Tracks"]
[711219,"Other Spectator Sports"]
[711310,"Promoters of Performing Arts, Sports and Similar Events with Facilities"]
[711320,"Promoters of Performing Arts, Sports and Similar Events without Facilities"]
[711410,"Agents and Managers for Artists, Athletes, Entertainers and Other Public Figures"]
[711510,"Independent Artists, Writers, and Performers"]
["Subsector 712 – Museums, Historical Sites and Similar Institutions"]
[712110,"Museums"]
[712120,"Historical Sites"]
[712130,"Zoos and Botanical Gardens"]
[712190,"Nature Parks and Other Similar Institutions  "]
["Subsector 713 – Amusement, Gambling and Recreation Industries"]
[713110,"Amusement and Theme Parks"]
[713120,"Amusement Arcades"]
[713210,"Casinos (except Casino Hotels)"]
[713290,"Other Gambling Industries"]
[713910,"Golf Courses and Country Clubs"]
[713920,"Skiing Facilities"]
[713930,"Marinas"]
[713940,"Fitness and Recreational Sports Centers"]
[713950,"Bowling Centers"]
[713990,"All Other Amusement and Recreation Industries"]
[null,"Sector 72 – Accommodation and Food Services"]
["Subsector 721 – Accommodation"]
[721110,"Hotels (except Casino Hotels) and Motels"]
[721120,"Casino Hotels"]
[721191,"Bed‑and‑Breakfast Inns"]
[721199,"All Other Traveler Accommodation"]
[721211,"RV (Recreational Vehicle) Parks and Campgrounds  "]
[721214,"Recreational and Vacation Camps (except Campgrounds)"]
[721310,"Rooming and Boarding Houses, Dormitories, and Workers’ Camps"]
["Subsector 722 – Food Services and Drinking Places"]
[722310,"Food Service Contractors"]
[722320,"Caterers"]
[722330,"Mobile Food Services"]
[722410,"Drinking Places (Alcoholic Beverages)"]
[722511,"Full-Service Restaurants"]
[722513,"Limited-Service Restaurants"]
[722514,"Cafeterias, Grill Buffets, and Buffets"]
[722515,"Snack and Nonalcoholic Beverage Bars"]
[null,"Sector 81 – Other Services"]
["Subsector 811 – Repair and Maintenance"]
[811111,"General Automotive Repair"]
[811112,"Automotive Exhaust System Repair"]
[811113,"Automotive Transmission Repair"]
[811118,"Other Automotive Mechanical and Electrical Repair and Maintenance"]
[811121,"Automotive Body, Paint and Interior Repair and Maintenance"]
[811122,"Automotive Glass Replacement Shops"]
[811191,"Automotive Oil Change and Lubrication Shops  "]
[811192,"Car Washes"]
[811198,"All Other Automotive Repair and Maintenance"]
[811211,"Consumer Electronics Repair and Maintenance"]
[811212,"Computer and Office Machine Repair and Maintenance"]
[811213,"Communication Equipment Repair and Maintenance"]
[811219,"Other Electronic and Precision Equipment Repair and Maintenance"]
[811310,"Commercial and Industrial Machinery and Equipment (except Automotive and Electronic) Repair and Maintenance"]
[811411,"Home and Garden Equipment Repair and Maintenance"]
[811412,"Appliance Repair and Maintenance"]
[811420,"Reupholstery and Furniture Repair"]
[811430,"Footwear and Leather Goods Repair"]
[811490,"Other Personal and Household Goods Repair and Maintenance"]
["Subsector 812 – Personal and Laundry Services"]
[812111,"Barber Shops"]
[812112,"Beauty Salons"]
[812113,"Nail Salons"]
[812191,"Diet and Weight Reducing Centers"]
[812199,"Other Personal Care Services"]
[812210,"Funeral Homes and Funeral Services"]
[812220,"Cemeteries and Crematories"]
[812310,"Coin‑Operated Laundries and Drycleaners"]
[812320,"Drycleaning and Laundry Services (except Coin‑Operated)"]
[812331,"Linen Supply"]
[812332,"Industrial Launderers"]
[812910,"Pet Care (except Veterinary) Services"]
[812921,"Photofinishing Laboratories (except One‑Hour)"]
[812922,"One‑Hour Photofinishing"]
[812930,"Parking Lots and Garages"]
[812990,"All Other Personal Services"]
["Subsector 813 – Religious, Grantmaking, Civic, Professional and Similar Organizations"]
[813110,"Religious Organizations"]
[813211,"Grantmaking Foundations"]
[813212,"Voluntary Health Organizations"]
[813219,"Other Grantmaking and Giving Services"]
[813311,"Human Rights Organizations"]
[813312,"Environment, Conservation and Wildlife Organizations"]
[813319,"Other Social Advocacy Organizations"]
[813410,"Civic and Social Organizations"]
[813910,"Business Associations"]
[813920,"Professional Organizations"]
[813930,"Labor Unions and Similar Labor Organizations "]
[813940,"Political Organizations"]
[813990,"Other Similar Organizations (except Business, Professional, Labor, and Political Organizations) "]
[null,"Sector 92 – Public Administration",null,"See footnote 19"]
[null,"(Small business size standards are not established for this Sector.  Establishments in the Public Administration Sector are Federal, state, and local government agencies which administer and oversee government programs and activities that are not performed by private establishments.)"]

{"sheet":"Definitions","index":2,"n_rows":22,"n_cols":3,"rows_kept":22,"cut":false,"hidden":false,"merged":[]}
[null,"Allowable Uses of Loan Proceeds","Payroll Costs as defined herein plus payments of interest on any mortgage obligation (which shall not include any prepayment of or payment of principal on a mortgage obligation); rent (including rent under a lease agreement); utilities and interest on any other debt obligations that were incurred before the covered period. "]
[null,"Amortization","Any balance not forgiven is due no later than 10 years from date borrower applies for loan forgiveness"]
[null,"Covered Loan","Loan made by the SBA under the CARES act during the covered period"]
[null,"Covered Period for the Eligible Recipient","Eight weeks from loan origination to the eligible recipient"]
[null,"Covered Period for the PPP Program","2/15/2020 to 6/30/2020"]
[null,"Covered Rent Obligation","Rent obligated under lease agreement in force before 2/15/2020"]
[null,"Covered Utility Payment","Payment for Electricity, Gas, Water, Transportation, Telephone, or Internet Access if service began before 2/15/2020"]
[null,"Eligible Recipient","Individual or Entity that is eligible to receive a Covered Loan defined as 1) small business concern under the SBA Act or, 2) a business concern or, 3) an eligible sole proprietor, independent contractor, or self-employed individual or 4) a non-profit organization under 501c(3), or 5) a veterans organization or, 6) a Tribal business concern under section 31(b)(2)(C), any of which with employee size not greater than 500** employees, (where employees include Full-time, Part-time or other basis)?"]
[null,"Eligible Self Employed Individual","As defined in 7002 (b) of Families First Coronavirus Response Act"]
[null,"Employee","Individuals employed on a full-time, part-time, or other basis"]
[null,"Expected Forgiveness Amount","Amount of principal from the covered loan that a lender reasonably expects a borrower to expend during the 8 week covered period on payroll costs, mortgage interest, covered rent obligation, covered utility payments, subject to certain calculations related to employment levels and payroll levels during the covered period and compared to a period prior to the covered period"]
[null,"Interest Rate","Not to exceed 4% per annum"]
[null,"Lender Reimbursement of Forgiveness Amount","SBA Administration will remit to lender an amount equal to the Forgiveness amount plus any interest within 90 days after determination of the Forgiveness amount, up to 100% of the principal of the covered loan amount"]
[null,"Mortgage Interest"]
[null,"Necessary Documentation for Self Employed, Independent Contractor or Sole Proprietor","Eligible Recipients in this group seeking a covered loan will be required to submit documentation such as payroll tax filings reported to the IRS under 1099-Misc and income and expenses from sole proprietorship"]
[null,"Non-Profit Organization","Organization described in Section 501 c 3 of the Internal Revenue Code of 1986 and that is exempt from taxation in section  501 a of that code"]
[null,"Payment Deferment","Lenders are to provide complete payment deferment relief for impacted borrowers with covered loans for a period of not less than 6 months, including payment of principal, interest, and fees, and not more than 1 year. "]
[null,"Payroll Costs","Salary, wage, commission, similar compensation, cash tip or equivalent, vacation, parental, family, medical or sick leave, allowance for dismissal or separation, payments for provision of group health care benefits including insurance premiums, payment for any retirement benefit, payment for state and local tax assessed on the compensation of employees, and the sum of payments to or income of a sole proprietor or independent contractor this is a wage, commission, income, net earnings from self employment or similar compensation and this is an amount not more than $100,000 in one year, as prorated for the covered period.  Payroll Costs shall NOT INCLUDE the compensation of an individual employee in excess of an annual salary of $100,000 as prorated for the covered period, any compensation to an individual whose principal residence is outside the USA, qualified sick leave or family leave wages for which credit is allowed under sections 7001 and 7003 respectively of the Families First Coronavirus Response Act"]
[null,"Veterans Organization","An organization that is described in 501 c 19 of the Internal Revenue Code that is exempt from taxation under section 501a of that code"]
[null,"Waiver of Affiliation Rules for business concerns with more than one physical location","During the covered period, any business concern that employs not more than 500 employees per physical location of the business concern and that is assigned a North American Industry Classification System code beginning with 72 at the time of disbursal shall be eligible to receive a covered loan. During the covered period, the provisions applicable to affiliations under section 121.103 of title 13, Code of Federal Regulations, or any successor regulation, are waived with respect to eligibility for a covered loan for any business concern with not more than 500 employees that, as of the date on which the covered loan is disbursed, is assigned a North American Industry Classification System code beginning with 72; any business concern operating as a franchise that is assigned a franchise identifier code by the Administration; and any business concern that receives financial assistance from a company licensed under section 301 of the Small Business Investment Act of 1958 (15 U.S.C. 681). "]
[null,"Wavier of Personal Guarantee Requirement","No personal guarantee shall be required for the covered loan; and no collateral shall be required for the covered loan. "]
[null,"Waiver of Prepayment Penalty","Notwithstanding any other provision of law, there shall be no prepayment penalty for any payment made on a covered loan"]

{"sheet":"Expected Data Needed ","index":3,"n_rows":45,"n_cols":3,"rows_kept":45,"cut":false,"hidden":false,"merged":[[32,0,34,0],[32,2,34,2],[43,0,43,2],[35,0,36,0],[35,2,36,2],[37,0,38,0],[37,2,38,2],[39,0,40,0],[39,2,40,2],[23,0,23,2],[27,0,28,0],[27,2,28,2],[29,0,31,0],[29,2,31,2],[44,0,48,2],[25,0,26,0],[25,2,26,2],[0,0,0,2],[1,0,1,2],[10,0,10,2],[12,0,13,0],[12,2,13,2],[14,0,16,0],[14,2,16,2],[8,0,8,1],[3,0,6,1],[17,0,19,0],[17,2,19,2],[20,0,21,0],[20,2,21,2]]}
["EXPECTED FINANCIAL DATA NEEDED - 7(a) SBA LOAN AND FORGIVENESS UNDER THE CARES ACT"]
["Checklist of Documentation Expected to be Required"]
[null,null,"rev 3/28/20"]
["The SBA loans under Section 1102 of the CARES Act (sometimes referred to as \"7(a) Loans\") which are eligble for forgiveness are available to employers with less than 500 employees.  Such loans will be handled through the client's lender (bank) and guaranteed 100% by the SBA.  These are non-recourse loans."]
[]
[]
[]
[]
["We expect banks might need the following financial information in order to process the SBA loan:"]
[]
["This information may be needed to present to the bank to apply for the loan:"]
[]
["1)","Copies of payroll tax reports file with the IRS (including Forms 941, 940, state income and unemployment "]
[null,"tax filing reports) for the entire year of 2019 and first quarter of 2020 (if available) should be presented. "]
["2)","Copies of payroll reports for each pay period for the preceding 12 months.  Such reports should include"]
[null,"gross wages including PTO (which might include vacation, sick, and other PTO).  This includes payroll "]
[null,"reports through the pay period preceding the origination of the SBA loan."]
["3)","Documentation reflecting the health insurance premiums paid by the company under a group health plan"]
[null,"including owners of the company for the immediately preceding 12 months prior to the date of the SBA "]
[null,"loan origination.  Copies of the monthly invoices should suffice. "]
["4)","Documentation of all retirement plan funding by the employer for the immediately preceeding 12 months."]
[null,"Copies of workpapers, schedules and remittances to the retirement plan administrator should be sufficient."]
[]
["This information may be needed to present to the bank or SBA for Loan Forgiveness: "]
[]
["1)","Copies of payroll tax reports file with the IRS (including Forms 941, 940, state income and unemployment "]
[null,"tax filing reports) for the the 8 week period following the original of the loan.  "]
["2)","Copies of payroll reports for each pay period for the 8 week period following the origination of the loan.  "]
[null,"Gross wages including PTO (which might include vacation, sick, and other PTO) should be reflected.   "]
["3)","Documentation reflecting the health insurance premiums paid by the company under a group health plan"]
[null,"including owners of the company for the 8 week period following the origination of the loan should be  "]
[null,"provided.  Copies of the monthly invoices should suffice. "]
["4)","Documentation of all retirement plan funding by the employer for the 8 weeks following the origination of "]
[null,"loan should be sufficent.  Copies of workpapers, schedules and remittances to the retirement plan"]
[null,"administrator should be available.  "]
["5)","Copies of all lease agreements for real estate and tangible personal property should be presented along with"]
[null,"proof of payment during the 8 week period followiing the loan origination date. "]
["6)","Copies of all statement of interest paid on debt obligations incurred prior to February 15, 2020 indicating"]
[null,"payment amounts and proof of payment for the 8 week period following the loan origination date."]
["7)","Copies of cancelled checks, statements or other evidence of utilities paid during the \"covered period\" for the"]
[null,"8 week period following the loan origination date."]
[]
[]
["IMPORTANT NOTES:"]
["Each lender may require more or less information. In addition, each borrower will need to make a certification that the documentation is true and correct, the amount for which forgiveness is being requested was used to make payments to retain employees and to make interest payments on covered mortgage obligations, covered rent obligations and covered utility payments. In addition, the SBA may request further information. There will be NO forgiveness of the documentation is not presented. The SBA will render a decision within 60 days after recipt of an application for forgiveness. "]